lending/lending_fUSD_20240111
["ID","MTS","AMOUNT","RATE_DAILY","PERIOD"]
[311216290,1704984651667,-239.16584862,0.0004515,30]
[311216292,1704984651677,-713.41,0.00045205,7]
[311216294,1704984651688,-500.0,0.00045205,30]
[311216296,1704984651698,-500.0,0.00045205,30]
[311216298,1704984651707,-2818.21,0.00045205,5]
[311216300,1704984651717,-500.0,0.00045205,30]
[311216302,1704984651728,-500.0,0.00045205,30]
[311216304,1704984651738,-564.7,0.00045205,30]
[311216307,1704984651748,-500.0,0.00045205,30]
[311216309,1704984651757,-500.0,0.00045205,30]
[311216311,1704984651767,-500.0,0.00045205,30]
[311216313,1704984651776,-500.0,0.00045205,30]
[311216315,1704984651785,-3990.45,0.00045205,30]
[311216317,1704984651794,-500.0,0.00045205,30]
[311216319,1704984651804,-817.75,0.00045205,30]
[311216321,1704984651814,-500.0,0.00045205,30]
[311216323,1704984651823,-500.0,0.00045205,30]
[311216325,1704984651832,-1502.63,0.00045205,30]
[311216327,1704984651841,-3770.01,0.00045205,5]
[311216328,1704984651850,-500.0,0.00045205,30]
[311216330,1704984651859,-500.0,0.00045205,30]
[311216332,1704984651869,-150.53030045,0.00045216,26]
[311216334,1704984651879,-60758.562611,0.00045229,30]
[311216336,1704984651888,-582.97886652,0.00045232,30]
[311216338,1704984651898,-775.69951699,0.000453,120]
[311216340,1704984651908,-2002.68,0.0004536,2]
[311216342,1704984651917,-400.0,0.0004537,120]
[311216344,1704984651927,-150.0,0.00045389,60]
[311216346,1704984651936,-997.08460245,0.00045394,5]
[311216348,1704984651946,-511.26,0.000454,7]
[311216350,1704984651955,-1440.29,0.000454,7]
[311216353,1704984651965,-1907.5,0.000454,7]
[311216355,1704984651974,-713.41,0.00045479,7]
[311216357,1704984651985,-500.0,0.00045479,30]
[311216359,1704984651997,-500.0,0.00045479,30]
[311216361,1704984652007,-2818.21,0.00045479,5]
[311216363,1704984652023,-304.39,0.00045479,30]
[311216365,1704984652033,-500.0,0.00045479,30]
[311216367,1704984652044,-564.7,0.00045479,30]
[311216369,1704984652055,-447.62259994,0.00045479,30]
[311216371,1704984652065,-500.0,0.00045479,30]
[311216373,1704984652076,-220.36,0.00045479,30]
[311216375,1704984652086,-500.0,0.00045479,30]
[311216377,1704984652095,-3990.45,0.00045479,30]
[311216379,1704984652105,-401.30956369,0.00045479,30]
[311216381,1704984652115,-817.75,0.00045479,30]
[311216383,1704984652124,-500.0,0.00045479,30]
[311216385,1704984652135,-500.0,0.00045479,30]
[311216387,1704984652144,-1502.63,0.00045479,30]
[311216389,1704984652154,-3770.01,0.00045479,5]
[311216391,1704984652164,-500.0,0.00045479,30]
[311216393,1704984652173,-500.0,0.00045479,30]
[311216395,1704984652183,-201.8,0.00045483,120]
[311216397,1704984652193,-333.40111,0.00045498,8]
[311216399,1704984652204,-10000.0,0.000455,45]
[311216401,1704984652214,-20000.0,0.000455,60]
[311216403,1704984652223,-20000.0,0.000455,60]
[311216405,1704984652232,-250.0,0.000455,30]
[311216407,1704984652241,-214.22,0.000455,60]
[311216409,1704984652250,-160.35349365,0.000455,120]
[311216411,1704984652259,-2110.0,0.000455,15]
[311216413,1704984652268,-482.23588353,0.000456,4]
[311216415,1704984652277,-23563.0,0.000456,30]
[311216417,1704984652287,-866.0,0.000456,120]
[311216419,1704984652295,-500.0,0.000457,30]
[311216421,1704984652306,-511.26,0.000457,7]
[311216423,1704984652316,-1440.29,0.000457,7]
[311216425,1704984652325,-1907.5,0.000457,7]
[311216427,1704984652335,-389.0951,0.0004573,29]
[311216429,1704984652344,-713.41,0.00045753,7]
[311216431,1704984652354,-500.0,0.00045753,30]
[311216433,1704984652363,-500.0,0.00045753,30]
[311216435,1704984652373,-2818.21,0.00045753,5]
[311216437,1704984652383,-500.0,0.00045753,30]
[311216439,1704984652393,-564.7,0.00045753,30]
[311216441,1704984652402,-500.0,0.00045753,30]
[311216443,1704984652411,-500.0,0.00045753,30]
[311216445,1704984652421,-3990.45,0.00045753,30]
[311216447,1704984652431,-817.75,0.00045753,30]
[311216449,1704984652441,-331.60653135,0.00045753,30]
[311216451,1704984652450,-500.0,0.00045753,30]
[311216453,1704984652459,-1502.63,0.00045753,30]
[311216455,1704984652469,-3770.01,0.00045753,5]
[311216457,1704984652479,-500.0,0.00045753,30]
[311216459,1704984652489,-500.0,0.00045753,30]
[311216461,1704984652497,-31411.31965487,0.000458,120]
[311216463,1704984652507,-233.0,0.00045868,28]
[311216465,1704984652517,-12768.27457835,0.0004587,120]
[311216467,1704984652527,-145203.356382,0.0004588,100]
[311216470,1704984652537,-151.0,0.0004588,14]
[311216472,1704984652546,-269.2795934,0.0004588,14]
[311216474,1704984652557,-328.184018,0.0004588,14]
[311216476,1704984652572,-328.184018,0.0004588,14]
[311216478,1704984652582,-151.0,0.0004588,14]
[311216480,1704984652591,-151.0,0.0004588,14]
[311216482,1704984652600,-589.435325,0.0004588,14]
[311216484,1704984652610,-589.435325,0.0004588,14]
[311216486,1704984652619,-151.0,0.0004588,14]
[311216488,1704984652628,-476.652934,0.0004588,14]
[311216490,1704984652637,-476.652934,0.0004588,14]
[311216492,1704984652647,-598.7501414,0.0004589,60]
[311216494,1704984652656,-379.97,0.000459,2]
[311216496,1704984652665,-380.0,0.000459,2]
[311216498,1704984652674,-380.0,0.000459,2]
[311216500,1704984652684,-380.0,0.000459,2]
[311216502,1704984652693,-380.0,0.000459,2]
[311216504,1704984652704,-380.0,0.000459,2]
[311216506,1704984652713,-380.0,0.000459,2]
[311216508,1704984652722,-380.0,0.000459,2]
[311216510,1704984652731,-292.86,0.000459,2]
[311216512,1704984652740,-241.9438339,0.000459,30]
[311216514,1704984652749,-150.0,0.000459,22]
[311216516,1704984652759,-350.0,0.00045945,120]
[311216518,1704984652768,-500.0,0.00045987,41]
[311216519,1704984652777,-200.0,0.00045987,25]
[311216520,1704984652787,-151.76839539,0.00045995,5]
[311216521,1704984652796,-1377.1907393,0.00045999,30]
[311216522,1704984652806,-1000.0,0.00045999,120]
[311216523,1704984652815,-100000.0,0.00046,16]
[311216524,1704984652825,-5034.9974414,0.00046,15]
[311216525,1704984652834,-52288.5,0.00046,30]
[311216526,1704984652843,-2281.0,0.00046,120]
[311216528,1704984652853,-1000.0,0.00046,30]
[311216530,1704984652862,-250.0,0.00046,14]
[311216532,1704984652871,-30000.0,0.00046,30]
[311216534,1704984652880,-154.54158249,0.00046,30]
[311216536,1704984652889,-5000.0,0.00046,120]
[311216538,1704984652898,-174.67,0.00046,120]
[311216540,1704984652908,-382.19693663,0.00046,30]
[311216542,1704984652917,-250.0,0.00046,30]
[311216544,1704984652926,-403.8732906,0.00046,120]
[311216546,1704984652935,-974.0,0.00046,30]
[311216548,1704984652945,-422.0,0.00046,120]
[311216550,1704984652954,-2986.0,0.00046,30]
[311216552,1704984652967,-10000.0,0.00046,2]
[311216554,1704984652976,-300.0,0.00046,47]
[311216556,1704984652986,-3277.57111533,0.00046,120]
[311216558,1704984652995,-312.4735379,0.00046,24]
[311216560,1704984653004,-2585.9348,0.00046,120]
[311216562,1704984653013,-1809.70743747,0.00046,7]
[311216564,1704984653022,-511.26,0.00046,7]
[311216566,1704984653031,-1440.29,0.00046,7]
[311216568,1704984653040,-1907.5,0.00046,7]
[311216570,1704984653049,-754.1650212,0.00046,11]
[311216572,1704984653060,-1037.9634488,0.00046,11]
[311216574,1704984653069,-200.931785,0.00046,30]
[311216576,1704984653078,-300.0,0.00046,22]
[311216578,1704984653088,-150.0,0.00046,73]
[311216580,1704984653098,-178.177653,0.00046,73]
[311216582,1704984653107,-2110.0,0.00046,15]
[311216584,1704984653116,-2729.29867338,0.00046009,120]
[311216586,1704984653126,-713.41,0.00046027,7]
[311216588,1704984653135,-500.0,0.00046027,30]
[311216590,1704984653145,-500.0,0.00046027,30]
[311216592,1704984653154,-2818.21,0.00046027,5]
[311216594,1704984653164,-500.0,0.00046027,30]
[311216596,1704984653174,-564.7,0.00046027,30]
[311216598,1704984653183,-500.0,0.00046027,30]
[311216600,1704984653193,-500.0,0.00046027,30]
[311216602,1704984653204,-3990.45,0.00046027,30]
[311216604,1704984653215,-817.75,0.00046027,30]
[311216606,1704984653224,-500.0,0.00046027,30]
[311216608,1704984653234,-1502.63,0.00046027,30]
[311216610,1704984653243,-3770.01,0.00046027,5]
[311216612,1704984653253,-500.0,0.00046027,30]
[311216614,1704984653262,-500.0,0.00046027,30]
[311216616,1704984653271,-150.0,0.00046098,60]
[311216618,1704984653280,-400.0,0.00046137,120]
[311216620,1704984653290,-153.84,0.00046162,2]
[311216622,1704984653299,-150.53030045,0.00046188,30]
[311216624,1704984653310,-333.40111,0.00046198,8]
[311216626,1704984653319,-200.0,0.000462,2]
[311216628,1704984653328,-151.7,0.00046233,2]
[311216630,1704984653338,-204.0,0.00046287,28]
[311216632,1704984653347,-511.26,0.000463,7]
[311216634,1704984653356,-1440.29,0.000463,7]
[311216636,1704984653365,-1907.5,0.000463,7]
[311216638,1704984653374,-713.41,0.00046301,7]
[311216640,1704984653383,-500.0,0.00046301,30]
[311216642,1704984653393,-162.4,0.00046301,30]
[311216644,1704984653402,-2818.21,0.00046301,5]
[311216646,1704984653412,-500.0,0.00046301,30]
[311216648,1704984653422,-564.7,0.00046301,30]
[311216650,1704984653432,-213.0,0.00046301,30]
[311216652,1704984653442,-500.0,0.00046301,30]
[311216654,1704984653452,-3990.45,0.00046301,30]
[311216656,1704984653464,-817.75,0.00046301,30]
[311216659,1704984653474,-500.0,0.00046301,30]
[311216660,1704984653483,-1502.63,0.00046301,30]
[311216663,1704984653492,-3770.01,0.00046301,5]
[311216665,1704984653502,-500.0,0.00046301,30]
[311216667,1704984653512,-500.0,0.00046301,30]
[311216669,1704984653522,-389.0951,0.0004635,32]
[311216671,1704984653531,-172.90539253,0.00046388,60]
[311216673,1704984653540,-150.0,0.00046389,60]
[311216675,1704984653550,-12077.29900744,0.000464,30]
[311216677,1704984653561,-150.0,0.00046448,2]
[311216679,1704984653570,-2002.68,0.0004645,2]
[311216681,1704984653579,-333.40111,0.00046498,8]
[311216683,1704984653588,-200.0,0.000465,120]
[311216685,1704984653597,-2110.0,0.000465,15]
[311216687,1704984653607,-6184.718487,0.00046548,120]
[311216688,1704984653616,-55274.361958,0.00046548,120]
[311216691,1704984653626,-16000.167182,0.00046548,120]
[311216693,1704984653635,-16582.308588,0.00046548,120]
[311216695,1704984653645,-1855.415547,0.00046548,120]
[311216697,1704984653656,-5701.933259,0.00046548,120]
[311216699,1704984653665,-4072.809472,0.00046548,120]
[311216701,1704984653675,-3258.247577,0.00046548,120]
[311216703,1704984653684,-713.41,0.00046575,7]
[311216705,1704984653694,-160.27542447,0.00046575,120]
[311216707,1704984653703,-174.80752875,0.00046575,120]
[311216709,1704984653712,-609.97491474,0.00046575,120]
[311216711,1704984653722,-500.0,0.00046575,30]
[311216713,1704984653731,-2818.21,0.00046575,5]
[311216715,1704984653741,-500.0,0.00046575,30]
[311216717,1704984653750,-564.7,0.00046575,30]
[311216719,1704984653760,-500.0,0.00046575,30]
[311216721,1704984653769,-3990.45,0.00046575,30]
[311216723,1704984653778,-817.75,0.00046575,30]
[311216725,1704984653787,-500.0,0.00046575,30]
[311216727,1704984653796,-1502.63,0.00046575,30]
[311216729,1704984653809,-3770.01,0.00046575,5]
[311216731,1704984653819,-215.0374,0.00046575,30]
[311216733,1704984653828,-500.0,0.00046575,30]
[311216735,1704984653837,-20006.23444797,0.000466,30]
[311216737,1704984653847,-987.88233507,0.000466,120]
[311216739,1704984653856,-511.26,0.000466,7]
[311216741,1704984653866,-1440.29,0.000466,7]
[311216743,1704984653875,-1907.5,0.000466,7]
[311216745,1704984653884,-1670.3,0.00046647,120]
[311216747,1704984653893,-150.0,0.00046699,5]
[311216749,1704984653902,-150.0,0.00046699,5]
[311216751,1704984653911,-24575.03552831,0.000467,120]
[311216753,1704984653921,-282.94,0.00046746,2]
[311216755,1704984653930,-233.0,0.0004675,28]
[311216757,1704984653939,-220.0,0.0004677,120]
[311216759,1704984653948,-220.0,0.0004678,120]
[311216760,1704984653958,-220.0,0.0004678,120]
[311216762,1704984653966,-220.0,0.0004679,120]
[311216764,1704984653976,-220.0,0.0004679,120]
[311216767,1704984653987,-350.0,0.00046795,120]
[311216769,1704984653996,-333.40111,0.00046798,8]
[311216771,1704984654005,-713.41,0.00046849,7]
[311216773,1704984654015,-500.0,0.00046849,30]
[311216775,1704984654024,-2818.21,0.00046849,5]
[311216777,1704984654033,-214.27106647,0.00046849,30]
[311216779,1704984654042,-564.7,0.00046849,30]
[311216785,1704984654218,-500.0,0.00046849,30]
[311216786,1704984654229,-3990.45,0.00046849,30]
[311216787,1704984654239,-817.75,0.00046849,30]
[311216788,1704984654248,-500.0,0.00046849,30]
[311216789,1704984654258,-1502.63,0.00046849,30]
[311216790,1704984654267,-3770.01,0.00046849,5]
[311216791,1704984654277,-500.0,0.00046849,30]
[311216792,1704984654286,-667.97,0.00046854,2]
[311216794,1704984654295,-150.0,0.00046879,5]
[311216795,1704984654304,-150.0,0.00046879,5]
[311216798,1704984654318,-1849.0,0.0004689,3]
[311216800,1704984654327,-255968.73070994,0.000469,11]
[311216819,1704984654507,-50772.00173469,0.000469,11]
[311216821,1704984654517,-203974.72694131,0.000469,30]
[311216823,1704984654526,-150.0,0.000469,24]
[311216825,1704984654536,-400.0,0.00046904,120]
[311216827,1704984654545,-7000.0,0.00046933,2]
[311216829,1704984654554,-13000.0,0.0004695,30]
[311216831,1704984654566,-997.08460245,0.00046973,5]
[311216832,1704984654575,-789.66761273,0.00046973,2]
[311216834,1704984654584,-2000.0,0.0004698,5]
[311216836,1704984654594,-1049.0,0.0004698,5]
[311216838,1704984654603,-500.0,0.00046987,43]
[311216841,1704984654613,-200.0,0.00046987,26]
[311216842,1704984654623,-4524.0,0.0004699,3]
[311216844,1704984654632,-478.78673031,0.00046999,15]
[311216846,1704984654642,-167.99556235,0.00046999,7]
[311216848,1704984654651,-100000.0,0.00047,17]
[311216851,1704984654661,-10000.0,0.00047,120]
[311216852,1704984654670,-1850.969999,0.00047,30]
[311216855,1704984654680,-448.0,0.00047,120]
[311216856,1704984654689,-155.39796897,0.00047,4]
[311216859,1704984654698,-600.0,0.00047,30]
[311216861,1704984654708,-217.67,0.00047,30]
[311216863,1704984654717,-168.96168081,0.00047,4]
[311216865,1704984654727,-50000.0,0.00047,120]
[311216867,1704984654737,-10000.0,0.00047,120]
[311216869,1704984654746,-2845.33129169,0.00047,14]
[311216871,1704984654756,-17940.56445183,0.00047,60]
[311216873,1704984654765,-1086.47,0.00047,120]
[311216875,1704984654775,-30000.0,0.00047,60]
[311216877,1704984654785,-250.0,0.00047,14]
[311216879,1704984654794,-10000.0,0.00047,47]
[311216881,1704984654803,-20000.0,0.00047,62]
[311216883,1704984654816,-89946.1273016,0.00047,30]
[311216885,1704984654828,-2399.05,0.00047,30]
[311216887,1704984654840,-289.401648,0.00047,30]
[311216902,1704984654967,-150.0,0.00040448,2]
[311216904,1704984654977,-500.0,0.00042465,30]
[311216906,1704984654985,-500.0,0.00042465,30]
[311216908,1704984654995,-500.0,0.00042465,30]
[311216910,1704984655005,-500.0,0.00042739,30]
[311216912,1704984655014,-500.0,0.00042739,30]
[311216914,1704984655023,-500.0,0.00043013,30]
[311216916,1704984655032,-141873.0,0.00047,30]
[311216918,1704984655044,-10380.0,0.00047,30]
[311216920,1704984655055,-35123.97848108,0.00047,30]
[311216924,1704984655079,-436.16067243,0.00043999,4]
[311216926,1704984655088,-5439.75453962,0.00047,30]
[311216928,1704984655104,-48141.97150291,0.00047,30]
[311217631,1704984662929,-272537.05061146,0.00047,30]
[311217632,1704984662939,-245.47019288,0.00047,60]
[311217635,1704984662949,-591.4192865,0.00047,2]
[311217637,1704984662961,-1742.29652908,0.00047,30]
[311217639,1704984662971,-227.99209831,0.00047,30]
[311217641,1704984662980,-306.47021699,0.00047,2]
[311217643,1704984662990,-300.0,0.00047,48]
[311217645,1704984662999,-183.73314624,0.00047,30]
[311217647,1704984663009,-500000.0,0.00047,30]
[311217649,1704984663018,-286918.7383979,0.00047,30]
[311217651,1704984663026,-150.12608329,0.00047,35]
[311217653,1704984663035,-511.26,0.00047,7]
[311217655,1704984663044,-1440.29,0.00047,7]
[311217657,1704984663054,-1907.5,0.00047,7]
[311217659,1704984663063,-900.0,0.00047,3]
[311217661,1704984663072,-328.184018,0.00047,14]
[311217663,1704984663081,-328.184018,0.00047,14]
[311217665,1704984663090,-328.184018,0.00047,14]
[311217667,1704984663099,-328.184018,0.00047,14]
[311217669,1704984663108,-151.0,0.00047,14]
[311217671,1704984663118,-151.0,0.00047,14]
[311217673,1704984663127,-199.547118,0.00047,14]
[311217675,1704984663137,-589.435325,0.00047,14]
[311217677,1704984663146,-589.435325,0.00047,14]
[311217679,1704984663156,-589.435325,0.00047,14]
[311217681,1704984663165,-589.435325,0.00047,14]
[311217683,1704984663175,-151.0,0.00047,14]
[311217685,1704984663184,-151.0,0.00047,14]
[311217687,1704984663193,-300.0,0.00047,24]
[311217689,1704984663203,-150.0,0.00047,85]
[311217691,1704984663215,-476.652934,0.00047,14]
[311217707,1704984663225,-476.652934,0.00047,14]
[311217709,1704984663374,-476.652934,0.00047,14]
[311217711,1704984663384,-476.652934,0.00047,14]
[311217713,1704984663394,-1355.14,0.00047,15]
[311217715,1704984663403,-152.0,0.00047053,5]
[311217717,1704984663413,-150.0,0.00047059,5]
[311217719,1704984663422,-150.0,0.00047059,5]
[311217721,1704984663432,-713.41,0.00047123,7]
[311217723,1704984663441,-462.40660562,0.00047123,30]
[311217725,1704984663450,-2818.21,0.00047123,5]
[311217727,1704984663460,-564.7,0.00047123,30]
[311217729,1704984663469,-500.0,0.00047123,30]
[311217731,1704984663479,-3990.45,0.00047123,30]
[311217733,1704984663489,-817.75,0.00047123,30]
[311217735,1704984663499,-500.0,0.00047123,30]
[311217737,1704984663508,-1502.63,0.00047123,30]
[311217739,1704984663517,-3770.01,0.00047123,5]
[311217741,1704984663526,-500.0,0.00047123,30]
[311217743,1704984663536,-150.53030045,0.00047159,33]
[311217745,1704984663545,-333.40111,0.00047198,10]
[311217747,1704984663555,-4806.0,0.00047202,117]
[311217749,1704984663565,-150.0,0.00047239,5]
[311217750,1704984663576,-150.0,0.00047239,5]
[311217753,1704984663586,-296.44051687,0.00047297,10]
[311217755,1704984663597,-2048.0,0.00047297,10]
[311217757,1704984663606,-150.0,0.00047389,60]
[311217758,1704984663617,-713.41,0.00047397,7]
[311217760,1704984663628,-2818.21,0.00047397,5]
[311217762,1704984663639,-564.7,0.00047397,30]
[311217764,1704984663649,-500.0,0.00047397,30]
[311217767,1704984663660,-3990.45,0.00047397,30]
[311217769,1704984663671,-817.75,0.00047397,30]
[311217771,1704984663681,-627.19,0.00047397,30]
[311217772,1704984663690,-1502.63,0.00047397,30]
[311217774,1704984663700,-3770.01,0.00047397,5]
[311217776,1704984663710,-500.0,0.00047397,30]
[311217778,1704984663720,-150.0,0.00047419,5]
[311217780,1704984663729,-150.0,0.00047419,5]
[311217782,1704984663739,-333.40111,0.00047498,10]
[311217784,1704984663748,-2000.0,0.000475,120]
[311217786,1704984663759,-200.0,0.000475,90]
[311217788,1704984663769,-2002.68,0.0004754,2]
[311217790,1704984663780,-150.0,0.00047599,5]
[311217792,1704984663790,-279.77067076,0.00047599,5]
[311217794,1704984663800,-5065.53822302,0.000476,2]
[311217796,1704984663810,-350.0,0.00047644,120]
[311217799,1704984663824,-713.41,0.00047671,7]
[311217801,1704984663835,-2818.21,0.00047671,5]
[311217802,1704984663845,-564.7,0.00047671,30]
[311217804,1704984663855,-500.0,0.00047671,30]
[311217806,1704984663865,-3990.45,0.00047671,30]
[311217808,1704984663875,-817.75,0.00047671,30]
[311217810,1704984663885,-1502.63,0.00047671,30]
[311217812,1704984663895,-3770.01,0.00047671,5]
[311217814,1704984663907,-280.68293054,0.00047671,30]
[311217816,1704984663918,-400.0,0.00047671,120]
[311217818,1704984663928,-4650.71925105,0.0004768,120]
[311217820,1704984663938,-150.79285013,0.0004775,5]
[311217822,1704984663948,-150.0,0.00047779,5]
[311217824,1704984663958,-151.40111,0.00047798,10]
[311217826,1704984663968,-330.27,0.00047821,15]
[311217828,1704984663977,-151.65502899,0.0004785,30]
[311217830,1704984663988,-3499.999999,0.000479,2]
[311217832,1704984663998,-237.69,0.000479,26]
[311217834,1704984664007,-1546.179621,0.00047945,120]
[311217836,1704984664017,-13818.590489,0.00047945,120]
[311217838,1704984664028,-3000.02143,0.00047945,120]
[311217840,1704984664038,-4000.041795,0.00047945,120]
[311217842,1704984664048,-4145.577147,0.00047945,120]
[311217844,1704984664058,-463.853886,0.00047945,120]
[311217846,1704984664067,-1876.985025,0.00047945,120]
[311217849,1704984664082,-1623.488607,0.00047945,120]
[311217851,1704984664093,-1425.483314,0.00047945,120]
[311217852,1704984664102,-1159.634717,0.00047945,120]
[311217855,1704984664112,-1018.202368,0.00047945,120]
[311217857,1704984664121,-291.410233,0.00047945,120]
[311217859,1704984664131,-713.41,0.00047945,7]
[311217861,1704984664140,-814.561894,0.00047945,120]
[311217862,1704984664149,-927.707773,0.00047945,120]
[311217865,1704984664159,-2818.21,0.00047945,5]
[311217867,1704984664168,-564.7,0.00047945,30]
[311217869,1704984664177,-500.0,0.00047945,30]
[311217870,1704984664186,-3990.45,0.00047945,30]
[311217872,1704984664196,-817.75,0.00047945,30]
[311217874,1704984664206,-1502.63,0.00047945,30]
[311217876,1704984664215,-3770.01,0.00047945,5]
[311217879,1704984664225,-500.0,0.00047945,30]
[311217881,1704984664234,-151.7,0.00047945,2]
[311217882,1704984664244,-150.0,0.00047959,5]
[311217884,1704984664253,-500.0,0.00047987,45]
[311217887,1704984664263,-200.0,0.00047987,27]
[311217889,1704984664272,-100000.0,0.00048,18]
[311217891,1704984664282,-510.6514,0.00048,120]
[311217893,1704984664291,-3338.0,0.00048,21]
[311217894,1704984664301,-960.0,0.00048,120]
[311217896,1704984664310,-269000.0,0.00048,120]
[311217898,1704984664319,-200.0,0.00048,25]
[311217900,1704984664332,-10000.0,0.00048,120]
[311217902,1704984664342,-17664.18399399,0.00048,120]
[311217904,1704984664351,-14450.83068738,0.00048,2]
[311217906,1704984664360,-600.0,0.00048,30]
[311217908,1704984664370,-3000.0,0.00048,6]
[311217910,1704984664381,-60918.35097924,0.00048,120]
[311217912,1704984664391,-170.0,0.00048,120]
[311217915,1704984664401,-1000.0,0.00048,120]
[311217917,1704984664411,-2078.0,0.00048,14]
[311217919,1704984664421,-6376.0,0.00048,30]
[311217921,1704984664432,-1000.0,0.00048,10]
[311217923,1704984664441,-250.0,0.00048,30]
[311217925,1704984664451,-200.82338271,0.00048,120]
[311217927,1704984664460,-300.0,0.00048,49]
[311217929,1704984664470,-1171.87222764,0.00048,2]
[311217931,1704984664479,-26000.0,0.00048,7]
[311217933,1704984664489,-200.0,0.00048,30]
[311217935,1704984664501,-300.0,0.00048,25]
[311217938,1704984664517,-150.0,0.00048,96]
[311217939,1704984664532,-2000.0,0.000481,10]
[311217940,1704984664546,-150.53030045,0.00048131,37]
[311217941,1704984664560,-150.0,0.00048139,5]
[311217942,1704984664577,-1622.80035888,0.00048187,120]
[311217943,1704984664593,-1784.0,0.0004819,3]
[311217944,1704984664609,-151.40111,0.00048198,10]
[311217947,1704984664624,-589.435325,0.000482,14]
[311217949,1704984664638,-589.435325,0.000482,14]
[311217952,1704984664655,-151.0,0.000482,14]
[311217954,1704984664669,-476.652934,0.000482,14]
[311217957,1704984664683,-476.652934,0.000482,14]
[311217959,1704984664698,-713.41,0.00048219,7]
[311217961,1704984664711,-2818.21,0.00048219,5]
[311217964,1704984664722,-564.7,0.00048219,30]
[311217966,1704984664739,-644.21129572,0.00048219,30]
[311217969,1704984664753,-3990.45,0.00048219,30]
[311217971,1704984664766,-817.75,0.00048219,30]
[311217973,1704984664779,-1502.63,0.00048219,30]
[311217976,1704984664794,-3770.01,0.00048219,5]
[311217978,1704984664808,-204.0,0.00048246,33]
[311217981,1704984664826,-150.0,0.00048319,5]
[311217984,1704984664843,-150.0,0.00048389,60]
[311217986,1704984664859,-400.0,0.00048438,120]
[311217988,1704984664870,-25033.05696,0.0004844,7]
[311217990,1704984664881,-713.41,0.00048493,7]
[311217993,1704984664894,-2818.21,0.00048493,5]
[311217995,1704984664907,-564.7,0.00048493,30]
[311217998,1704984664922,-3990.45,0.00048493,30]
[311218000,1704984664934,-817.75,0.00048493,30]
[311218002,1704984664946,-1502.63,0.00048493,30]
[311218004,1704984664957,-3770.01,0.00048493,5]
[311218006,1704984664969,-350.0,0.00048493,120]
[311218009,1704984664980,-151.40111,0.00048498,10]
[311218011,1704984664992,-150.0,0.00048499,5]
[311218013,1704984665004,-10000.0,0.000485,49]
[311218016,1704984665015,-20000.0,0.000485,63]
[311218018,1704984665028,-997.08460245,0.00048552,5]
[311218020,1704984665041,-2002.68,0.0004863,2]
[311218022,1704984665055,-150.0,0.00048679,5]
[311218025,1704984665068,-773.08981,0.00048767,120]
[311218027,1704984665086,-6909.295244,0.00048767,120]
[311218029,1704984665099,-2000.020897,0.00048767,120]
[311218031,1704984665111,-2072.788573,0.00048767,120]
[311218034,1704984665125,-231.926943,0.00048767,120]
[311218036,1704984665138,-712.741657,0.00048767,120]